bitfinex-derivatives/quotes_BNBF0:USTF0_20241230
["timestamp","ask_amount","ask_price","bid_price","bid_amount"]
[1735580508484,0.2618327,703.46,701.88,1.03388371]
[1735580508682,0.2618327,703.47,701.88,1.03388371]
[1735580508879,0.26183105,703.46,701.88,1.03388371]
[1735580509080,0.26183105,703.47,701.88,1.03388371]
[1735580509282,0.26183105,703.45,701.85,1.03388371]
[1735580509580,0.26183105,703.44,701.85,1.03388371]
[1735580509784,1.48595707,703.48,701.85,1.03388371]
[1735580510683,1.48595707,703.48,701.8,1.03388371]
[1735580511777,1.48595707,703.48,701.85,1.03388371]
[1735580513184,1.48595707,703.48,701.83,1.03388371]
[1735580514183,1.48595707,703.48,701.51,1.03388371]
[1735580514184,1.48595707,703.48,701.81,1.03388371]
[1735580515385,1.48595707,703.48,701.8,1.03388371]
[1735580515986,0.2618348,703.47,701.81,0.28497741]
[1735580516383,0.2618348,703.47,701.82,1.03388371]
[1735580516687,0.26182768,703.46,701.82,1.03388371]
[1735580516888,0.26182768,703.47,701.82,1.03388371]
[1735580517089,0.26182768,703.46,701.96,1.03388371]
[1735580517286,0.28431302,703.45,701.96,1.03388371]
[1735580517488,0.26182768,703.44,701.96,1.03388371]
[1735580518186,0.28431302,703.45,701.96,1.03388371]
[1735580518387,0.28431302,703.45,701.81,0.28497741]
[1735580518388,0.28431302,703.45,702.04,1.03388371]
[1735580519285,0.2618119,703.44,702.04,1.03388371]
[1735580519497,0.28431302,703.45,702.13,1.03388371]
[1735580520185,0.26181283,703.44,702.13,1.03388371]
[1735580520490,0.28431302,703.45,702.13,1.03388371]
[1735580520992,0.26179988,703.44,702.16,1.03388371]
[1735580521885,0.28431302,703.45,702.35,1.03388371]
[1735580523184,0.28431302,703.45,702.55,1.03388371]
[1735580523988,0.26177756,703.44,702.54,1.03388371]
[1735580524991,0.26177756,703.44,702.49,1.03388371]
[1735580525186,0.28431302,703.45,702.49,1.03388371]
[1735580525390,0.26178353,703.44,702.49,1.03388371]
[1735580525591,0.26178259,703.44,702.49,1.03388371]
[1735580526190,0.26178259,703.44,702.51,1.03388371]
[1735580527195,0.26178259,703.44,702.49,1.03388371]
[1735580527389,0.26176114,703.43,702.49,1.03388371]
[1735580527588,0.28431302,703.45,702.49,1.03388371]
[1735580527795,0.26175696,703.44,702.49,1.03388371]
[1735580527995,0.28431302,703.45,702.49,1.03388371]
[1735580528196,0.26176249,703.44,702.57,1.03388371]
[1735580530096,0.26176249,703.44,702.53,1.03388371]
[1735580530396,0.28431302,703.45,702.53,1.03388371]
[1735580530598,0.26179819,703.44,702.53,1.03388371]
[1735580531095,0.28431302,703.45,702.53,1.03388371]
[1735580531295,0.26182997,703.43,702.53,1.03388371]
[1735580531496,0.26182997,703.42,702.53,1.03388371]
[1735580531693,0.26182997,703.41,702.32,1.03388371]
[1735580531891,0.26182997,703.44,702.32,1.03388371]
[1735580532090,0.26182997,703.43,702.32,1.03388371]
[1735580532294,0.26182997,703.42,702.32,1.03388371]
[1735580532591,0.26182997,703.42,702.2,1.03388371]
[1735580533391,1.48576145,703.43,702.2,1.03388371]
[1735580533593,0.26184042,703.42,702.26,1.03388371]
[1735580533896,1.48576145,703.43,702.26,1.03388371]
[1735580534699,0.26179689,703.42,702.37,1.03388371]
[1735580535494,1.48576145,703.43,702.37,1.03388371]
[1735580535702,0.26179907,703.41,702.45,1.03388371]
[1735580535995,1.48576145,703.43,702.45,1.03388371]
[1735580536300,0.26180503,703.42,702.45,1.03388371]
[1735580536493,0.26180503,703.42,702.4,1.03388371]
[1735580536697,1.48576145,703.43,702.4,1.03388371]
[1735580537097,0.28432515,703.42,702.4,1.03388371]
[1735580537298,0.26181014,703.41,702.4,1.03388371]
[1735580537599,0.28433323,703.4,702.39,1.03388371]
[1735580538601,0.28433323,703.4,701.72,2.11084591]
[1735580538602,0.28433323,703.4,702.42,1.03388371]
[1735580539598,0.28433323,703.4,702.43,1.03388371]
[1735580541908,0.28433323,703.4,702.39,1.03388371]
[1735580543409,0.28433323,703.4,702.5,1.03388371]
[1735580544309,0.28433323,703.4,702.67,1.03388371]
[1735580545610,0.28433323,703.4,702.41,1.03388371]
[1735580546408,0.28433323,703.4,702.37,1.03388371]
[1735580547413,0.28433323,703.4,702.38,1.03388371]
[1735580548216,0.28433323,703.4,702.39,1.03388371]
[1735580549819,0.28433323,703.4,702.34,1.03388371]
[1735580550917,0.28433323,703.4,702.39,1.03388371]
[1735580552122,0.28433323,703.4,702.5,1.03388371]
[1735580552920,0.28433323,703.4,702.47,1.03388371]
[1735580554323,0.28433323,703.4,702.39,1.03388371]
[1735580555319,0.28433323,703.4,702.36,1.03388371]
[1735580557024,0.28433323,703.4,702.35,1.03388371]
[1735580558024,0.28433323,703.4,702.37,1.03388371]
[1735580558820,0.28433323,703.4,701.81,0.28497741]
[1735580558821,0.28433323,703.4,702.33,1.03388371]
[1735580559723,0.28433323,703.4,702.34,1.03388371]
[1735580560422,0.28433323,703.4,702.29,1.03388371]
[1735580561226,0.28433323,703.4,702.27,1.03388371]
[1735580562125,0.28433323,703.4,701.81,0.28497741]
[1735580562126,0.28433323,703.4,702.32,1.03388371]
[1735580563427,0.28433323,703.4,702.35,1.03388371]
[1735580564628,0.28433323,703.4,702.39,1.03388371]
[1735580565528,0.28433323,703.4,702.34,1.03388371]
[1735580566327,0.28433323,703.4,702.35,1.03388371]
[1735580567631,0.28433323,703.4,702.42,1.03388371]
[1735580568631,0.28433323,703.4,702.17,1.03388371]
[1735580568632,0.28433323,703.4,702.43,1.03388371]
[1735580569527,0.28433323,703.4,702.17,1.03388371]
[1735580569528,0.28433323,703.4,702.38,1.03388371]
[1735580570726,0.28433323,703.4,702.25,1.03388371]
[1735580571934,0.28433323,703.4,702.2,1.03388371]
[1735580572135,0.26183618,703.39,702.2,1.03388371]
[1735580572928,0.28433323,703.4,702.2,1.03388371]
[1735580573132,0.28433323,703.4,702.29,1.03388371]
[1735580573835,0.28433323,703.4,702.17,1.03388371]
[1735580574935,0.28433323,703.4,702.19,1.03388371]
[1735580576137,0.28433323,703.4,702.25,1.03388371]
[1735580576838,0.28433323,703.4,702.22,1.03388371]
[1735580577733,0.26184671,703.39,702.22,1.03388371]
[1735580577932,0.26184671,703.39,702.16,1.03388371]
[1735580579140,0.28434132,703.38,702.23,1.03388371]
[1735580579339,0.26184671,703.37,702.23,1.03388371]
[1735580579541,0.2843494,703.36,702.23,1.03388371]
[1735580580042,0.26183844,703.35,702.23,1.03388371]
[1735580580243,1.74760518,703.35,702.23,1.03388371]
[1735580580543,1.74760518,703.35,701.82,0.74377906]
[1735580580544,0.26183844,703.34,702.27,1.03388371]
[1735580581045,0.28436153,703.33,702.27,1.03388371]
[1735580581344,0.26183844,703.32,702.28,1.03388371]
[1735580581539,0.28436962,703.31,702.28,1.03388371]
[1735580582541,0.28436962,703.31,702.0,1.03388371]
[1735580583540,0.28436962,703.31,702.11,1.03388371]
[1735580584843,0.28436962,703.31,702.63,1.03388371]
[1735580585841,0.28436962,703.31,702.61,1.03388371]
[1735580587147,0.28436962,703.31,702.53,1.03388371]
[1735580588043,0.28436962,703.31,702.42,1.03388371]
[1735580590245,1.48521718,703.53,702.42,1.03388371]
[1735580590545,1.48521718,703.53,702.23,1.03388371]
[1735580591551,1.48521718,703.53,702.39,1.03388371]
[1735580592651,1.48492143,703.71,702.39,1.03388371]
[1735580592850,1.48492143,703.71,702.38,1.03388371]
[1735580594046,1.48492143,703.71,702.64,1.03388371]
[1735580595554,1.48492143,703.71,702.59,1.03388371]
[1735580596253,5.7127688,704.83,702.59,1.03388371]
[1735580596449,1.48464164,703.83,702.58,1.03388371]
[1735580596748,0.62974962,704.82,702.58,1.03388371]
[1735580596946,1.48460997,703.82,702.58,1.03388371]
[1735580597147,0.26158926,704.81,702.58,1.03388371]
[1735580597456,0.26158559,704.8,702.47,1.03388371]
[1735580597661,0.26158559,705.09,702.47,1.03388371]
[1735580597849,0.26158559,705.08,702.47,1.03388371]
[1735580598154,0.26158559,705.07,702.47,1.03388371]
[1735580598350,0.26158559,705.06,702.47,1.03388371]
[1735580598556,0.26158559,705.05,702.47,1.03388371]
[1735580598755,0.26158559,705.04,702.47,1.03388371]
[1735580598955,0.26158559,705.03,702.47,1.03388371]
[1735580599149,0.28372013,704.92,702.47,1.03388371]
[1735580599550,0.26160003,704.91,702.47,1.03388371]
[1735580599755,0.26160003,704.91,702.4,1.03388371]
[1735580601356,0.26160003,704.9,702.4,1.03388371]
[1735580601560,0.26160003,704.9,702.08,1.03388371]
[1735580601561,0.26160003,704.89,702.55,1.03388371]
[1735580601755,0.26160003,704.88,702.55,1.03388371]
[1735580601955,0.26160003,704.88,701.85,2.11084591]
[1735580602257,0.26152932,704.87,699.38,5.23128863]
[1735580602553,0.26152932,704.86,699.39,2.86568282]
[1735580602856,0.26152932,704.91,699.4,2.86568282]
[1735580603057,0.26152932,704.91,702.52,1.02945338]
[1735580603261,0.26152932,704.85,702.52,1.02945338]
[1735580603657,0.26152932,704.84,702.52,1.02945338]
[1735580603859,0.26152932,704.83,702.52,1.02945338]
[1735580604059,0.26152932,704.91,702.49,1.02945338]
[1735580604254,0.26152932,704.82,702.49,1.02945338]
[1735580604459,0.26150236,704.81,702.49,1.02945338]
[1735580604955,0.26150236,704.8,702.42,1.02945338]
[1735580605151,0.28372013,704.92,702.42,1.02945338]
[1735580605152,0.26148563,704.91,702.42,1.02945338]
[1735580605453,0.28372013,704.92,701.81,0.28497741]
[1735580605454,0.26148563,704.9,701.81,0.28497741]
[1735580606059,0.26148563,704.91,701.81,0.28497741]
[1735580606259,0.26144455,704.9,701.81,0.28497741]
[1735580606459,0.26144455,704.9,702.45,1.02681956]
[1735580606758,0.26144455,704.89,702.45,1.02681956]
[1735580606959,0.26143946,704.88,702.45,1.02681956]
[1735580607255,0.26143946,704.87,702.45,1.02681956]
[1735580607666,0.26143946,704.87,702.78,1.02681956]
[1735580607954,0.26143946,704.86,702.78,1.02681956]
[1735580608153,0.26143946,704.85,702.78,1.02681956]
[1735580608558,0.26143946,704.91,702.78,1.02681956]
[1735580608754,1.74488392,704.84,702.78,1.02681956]
[1735580608959,1.48344446,704.84,702.83,1.02681956]
[1735580609154,0.26143946,704.83,702.83,1.02681956]
[1735580610056,0.26143946,704.83,702.58,1.02681956]
[1735580611163,0.26143946,704.83,702.64,1.02681956]
[1735580611865,1.48344446,704.84,702.89,1.02681956]
[1735580612563,0.2613409,704.82,702.89,1.02681956]
[1735580612967,0.2613409,704.82,702.93,1.02681956]
[1735580613564,0.26131246,704.81,702.93,1.02681956]
[1735580613964,0.26131246,704.8,702.93,1.02681956]
[1735580614165,0.26131246,704.79,702.96,1.02681956]
[1735580614365,0.26131246,704.83,702.96,1.02681956]
[1735580614665,0.26131636,704.82,702.96,1.02681956]
[1735580614866,1.48344446,704.84,702.96,1.02681956]
[1735580615364,1.48344446,704.84,703.02,1.02681956]
[1735580616166,1.48344446,704.84,702.81,1.02681956]
[1735580617266,1.48344446,704.84,702.82,1.02681956]
[1735580617467,0.26133684,704.83,702.82,1.02681956]
[1735580618167,0.26133684,704.83,702.96,1.02681956]
[1735580619568,0.26135187,704.82,702.96,1.02681956]
[1735580620468,0.26135187,704.82,702.7,1.02681956]
[1735580620469,0.26135187,704.82,703.04,1.02681956]
[1735580620971,0.26135187,704.81,703.04,1.02681956]
[1735580621163,0.26135187,704.83,703.04,1.02681956]
[1735580621666,0.26135187,704.82,703.04,1.02681956]
[1735580621870,0.26135187,704.82,703.08,1.02681956]
[1735580622270,0.26135187,704.83,703.08,1.02681956]
[1735580622474,1.48344446,704.84,703.08,1.02681956]
[1735580622770,1.48344446,704.84,703.12,1.02681956]
[1735580623372,0.26124357,704.83,703.12,1.02681956]
[1735580623573,0.26124357,704.83,703.32,1.02681956]
[1735580623974,1.48344446,704.84,703.32,1.02681956]
[1735580624767,1.48344446,704.84,703.3,1.02681956]
[1735580626177,1.48344446,704.84,703.21,1.02681956]
[1735580627378,1.48344446,704.84,703.33,1.02681956]
[1735580628679,0.26125138,704.83,703.33,1.02681956]
[1735580629477,0.26125138,704.83,703.34,1.02681956]
[1735580629677,1.48344446,704.84,703.34,1.02681956]
[1735580630480,0.26126452,704.83,703.34,1.02681956]
[1735580630673,0.26126452,704.83,703.28,1.02681956]
[1735580632585,0.26130623,704.82,703.28,1.02681956]
[1735580632785,0.26130623,704.81,703.28,1.02681956]
[1735580632985,0.26130623,704.83,703.28,1.02681956]
[1735580633385,0.26130623,704.82,703.25,1.02681956]
[1735580633586,0.26130623,704.81,703.25,1.02681956]
[1735580634181,0.26130623,704.8,703.25,1.02681956]
[1735580634881,0.26130623,704.79,703.28,1.02681956]
[1735580635081,0.26141386,704.78,703.28,1.02681956]
[1735580635582,0.26141386,704.78,703.19,1.02681956]
[1735580635788,0.26141386,704.77,703.19,1.02681956]
[1735580636483,1.48349189,704.76,703.19,1.02681956]
[1735580636689,1.48349189,704.76,703.09,1.02681956]
[1735580637289,1.74493914,704.76,703.09,1.02681956]
[1735580637489,0.26144725,704.75,703.09,1.02681956]
[1735580637990,1.48349189,704.76,703.1,1.02681956]
[1735580638290,0.26144877,704.75,703.1,1.02681956]
[1735580638789,0.26144877,704.74,703.1,1.02681956]
[1735580639188,0.26144877,704.73,703.1,1.02681956]
[1735580639393,0.26144877,704.72,703.1,1.02681956]
[1735580639691,0.26144877,704.75,703.1,1.02681956]
[1735580639886,0.26144877,704.74,703.1,1.02681956]
[1735580640290,0.26144877,704.75,703.04,1.02681956]
[1735580640492,0.2614595,704.74,703.04,1.02681956]
[1735580641192,0.2614595,704.75,703.04,1.02681956]
[1735580641487,0.2614595,704.75,703.09,1.02681956]
[1735580641685,0.2614595,704.74,703.09,1.02681956]
[1735580641888,1.48349189,704.76,703.09,1.02681956]
[1735580641889,0.2614595,704.73,703.09,1.02681956]
[1735580642090,0.26141086,704.72,703.09,1.02681956]
[1735580642292,0.26141086,704.72,703.1,1.02681956]
[1735580642693,1.48349189,704.76,703.1,1.02681956]
[1735580643293,0.26139237,704.71,703.3,1.02681956]
[1735580644195,0.26139237,704.75,703.35,1.02681956]
[1735580644695,0.2613778,704.74,703.35,1.02681956]
[1735580644895,0.2613778,704.73,703.35,1.02681956]
[1735580645098,0.2613778,704.73,703.37,1.02681956]
[1735580645497,1.48349189,704.76,703.37,1.02681956]
[1735580646094,0.26132285,704.72,703.37,1.02681956]
[1735580646495,0.26132285,704.72,703.5,1.02681956]
[1735580647895,0.26132285,704.72,703.53,1.02681956]
[1735580649097,0.26132285,704.72,703.67,1.02681956]
[1735580650096,0.26132285,704.72,703.64,1.02681956]
[1735580651294,0.26132285,704.72,702.61,2.09642327]
[1735580651295,0.26132285,704.72,703.69,1.02681956]
[1735580652400,0.26132285,704.72,703.73,1.02681956]
[1735580653601,0.26132285,704.72,703.83,1.02681956]
[1735580654498,1.48202302,705.18,703.83,1.02681956]
[1735580654895,1.48202302,705.18,703.58,1.02681956]
[1735580656002,1.48202302,705.18,703.48,1.02681956]
[1735580656901,1.48202302,705.18,703.49,1.02681956]
[1735580657908,1.48202302,705.18,703.56,1.02681956]
[1735580658407,0.28361955,705.17,703.56,1.02681956]
[1735580659113,0.28361955,705.17,702.99,0.73331524]
[1735580659114,0.28361955,705.17,703.35,1.02681956]
[1735580659309,0.26120101,705.16,703.35,1.02681956]
[1735580659907,0.26120101,705.16,703.23,1.02681956]
[1735580660409,0.28361955,705.17,703.23,1.02681956]
[1735580660605,0.26113223,705.15,703.23,1.02681956]
[1735580661105,0.26113223,705.15,701.23,4.40970407]
[1735580661106,0.26113223,705.15,703.62,1.02681956]
[1735580661911,0.26114351,705.14,703.6,1.02681956]
[1735580662908,0.26114351,705.14,703.54,1.02681956]
[1735580663206,0.26119477,705.13,703.54,1.02681956]
[1735580663407,0.26113223,705.15,703.54,1.02681956]
[1735580663408,0.26119477,705.14,703.54,1.02681956]
[1735580663809,0.26119477,705.12,703.41,1.02681956]
[1735580664404,0.26119477,705.13,703.41,1.02681956]
[1735580664812,0.26119477,705.13,703.44,1.02681956]
[1735580665006,0.26119477,705.11,703.44,1.02681956]
[1735580665711,1.48243864,705.1,703.44,1.02681956]
[1735580666410,1.48243864,705.1,703.25,1.02681956]
[1735580666411,0.26125734,705.09,703.34,1.02681956]
[1735580667410,0.26125734,705.09,703.16,1.02681956]
[1735580668712,0.26125734,705.09,702.35,2.09642327]
[1735580668713,1.48243864,705.1,703.2,1.02681956]
[1735580668913,0.26121392,705.09,703.2,1.02681956]
[1735580670014,0.26121392,705.09,703.3,1.02681956]
[1735580670615,1.48243864,705.1,703.31,1.02681956]
[1735580672013,0.26120169,705.09,703.31,1.02681956]
[1735580672414,0.26120169,705.09,703.41,1.02681956]
[1735580673512,0.26120169,705.09,702.72,2.09642327]
[1735580673513,1.48243864,705.1,703.42,1.02681956]
[1735580673819,0.26119426,705.09,703.42,1.02681956]
[1735580674419,0.26119426,705.09,703.55,1.02681956]
[1735580675016,1.48243864,705.1,703.55,1.02681956]
[1735580675417,1.48243864,705.1,703.68,1.02681956]
[1735580676517,1.48243864,705.1,703.55,1.02681956]
[1735580677512,1.48243864,705.1,703.21,1.02681956]
[1735580677513,1.48243864,705.1,703.54,1.02681956]
[1735580678412,1.48243864,705.1,703.67,1.02681956]
[1735580679212,1.48243864,705.1,703.79,1.02681956]
[1735580680310,1.48243864,705.1,703.82,1.02681956]
[1735580681413,1.48243864,705.1,703.86,1.02681956]
[1735580682514,1.48243864,705.1,703.95,1.02681956]
[1735580682913,0.26121014,705.09,703.95,1.02681956]
[1735580683512,0.26121014,705.09,703.68,1.02681956]
[1735580683513,0.26121014,705.09,703.82,1.02681956]
[1735580684318,1.48243864,705.1,703.82,1.02681956]
[1735580685019,0.26125055,705.09,703.82,1.02681956]
[1735580685621,0.26125055,705.09,703.81,1.02681956]
[1735580686519,1.48243864,705.1,703.81,1.02681956]
[1735580686720,1.48243864,705.1,703.95,1.02681956]
[1735580687825,1.48243864,705.1,704.1,1.02681956]
[1735580688625,1.48243864,705.1,704.12,1.02681956]
[1735580689722,1.48243864,705.1,704.18,1.02681956]
[1735580690918,1.48243864,705.1,704.16,1.02681956]
[1735580692717,1.48243864,705.1,704.15,1.02681956]
[1735580693725,1.48243864,705.1,704.11,1.02681956]
[1735580694424,1.48243864,705.1,704.16,1.02681956]
[1735580695524,1.48243864,705.1,703.88,1.02681956]
[1735580696025,0.28365173,705.09,703.88,1.02681956]
[1735580696523,0.28365173,705.09,703.72,1.02681956]
[1735580697829,0.28365173,705.09,703.75,1.02681956]
[1735580698523,0.28365173,705.09,703.74,1.02681956]
[1735580699727,0.28365173,705.09,703.9,1.02681956]
[1735580700824,0.28365173,705.09,703.78,1.02681956]
[1735580701225,0.26121492,705.08,703.78,1.02681956]
[1735580701431,0.26123272,705.07,703.78,1.02681956]
[1735580701631,0.26123272,705.08,703.78,1.02681956]
[1735580701831,0.26123272,705.08,703.9,1.02681956]
[1735580702332,0.26123272,705.06,703.9,1.02681956]
[1735580703026,0.26123272,705.07,703.9,1.02681956]
[1735580703230,0.28365173,705.09,703.9,1.02681956]
[1735580703429,0.28365173,705.09,703.91,1.02681956]
[1735580704132,0.26122458,705.08,703.91,1.02681956]
[1735580704533,0.26122458,705.08,703.71,1.02681956]
[1735580704833,0.28365173,705.09,703.71,1.02681956]
[1735580705333,0.28365173,705.09,703.89,1.02681956]
[1735580706533,0.28365173,705.09,703.78,1.02681956]
[1735580706727,0.52256387,705.08,703.78,1.02681956]
[1735580707436,0.52256387,705.08,703.43,1.02681956]
[1735580707630,0.26138695,705.07,703.43,1.02681956]
[1735580707928,0.26138695,705.06,703.43,1.02681956]
[1735580708134,0.26138695,705.05,703.43,1.02681956]
[1735580708338,0.26138695,705.07,703.37,1.02681956]
[1735580709134,0.26138695,705.04,703.37,1.02681956]
[1735580709429,0.26138695,705.04,702.72,2.09642327]
[1735580709430,0.26138695,705.04,703.43,1.02681956]
[1735580709632,0.26123671,705.08,703.43,1.02681956]
[1735580709837,0.26134116,705.06,703.43,1.02681956]
[1735580710333,0.26123671,705.08,703.36,1.02681956]
[1735580711236,0.2611891,705.07,703.36,1.02681956]
[1735580711436,0.26123671,705.08,703.57,1.02681956]
[1735580711935,0.26117525,705.07,703.57,1.02681956]
[1735580712134,0.26123671,705.08,703.57,1.02681956]
[1735580712736,0.26123671,705.08,701.64,3.67569057]
[1735580712737,0.26123671,705.08,703.9,1.02681956]
[1735580713737,0.26123671,705.08,703.33,2.09642327]
[1735580713738,0.26123671,705.08,703.91,1.02681956]
[1735580714837,0.26123671,705.08,704.01,1.02681956]
[1735580715238,0.28365173,705.09,704.01,1.02681956]
[1735580717137,0.28365173,705.09,704.07,1.02681956]
[1735580718635,0.28365173,705.09,703.77,1.02681956]
[1735580719542,0.28365173,705.09,703.74,1.02681956]
[1735580721038,0.28365173,705.09,703.35,1.02681956]
[1735580721039,0.28365173,705.09,703.86,1.02681956]
[1735580722038,0.28365173,705.09,703.05,2.09642327]
[1735580722039,0.28365173,705.09,703.66,1.02681956]
[1735580723241,0.28365173,705.09,703.53,1.02681956]
[1735580723541,0.26127768,705.08,703.53,1.02681956]
[1735580724234,0.26127768,705.07,703.53,1.02681956]
[1735580724640,0.26127768,705.07,703.36,1.02681956]
[1735580725241,0.26127768,705.06,703.36,1.02681956]
[1735580725439,0.26127768,705.05,703.36,1.02681956]
[1735580725639,0.26127768,705.04,703.34,1.02681956]
[1735580725839,0.26127768,705.08,703.34,1.02681956]
[1735580726236,0.26127768,705.03,703.34,1.02681956]
[1735580726446,0.26127768,705.07,703.34,1.02681956]
[1735580726644,0.26143052,705.06,703.34,1.02681956]
[1735580726847,0.26143052,705.06,702.92,1.02681956]
[1735580727343,0.28365173,705.09,702.92,1.02681956]
[1735580728345,1.48334434,705.08,702.92,1.02681956]
[1735580729045,1.48334434,705.08,702.84,1.02681956]
[1735580730047,1.48334434,705.08,702.94,1.02681956]
[1735580730949,1.48334434,705.08,703.2,1.02681956]
[1735580731848,1.48334434,705.08,703.14,1.02681956]
[1735580732544,0.26133016,705.07,703.14,1.02681956]
[1735580732743,0.26133016,705.07,703.09,1.02681956]
[1735580733745,0.26133016,705.07,703.16,1.02681956]
[1735580735049,0.26133016,705.07,702.46,2.09642327]
[1735580735050,0.26133016,705.07,703.31,1.02681956]
[1735580735954,1.48334434,705.08,703.31,1.02681956]
[1735580736155,1.48334434,705.08,703.39,1.02681956]
[1735580737255,1.48334434,705.08,703.21,1.02681956]
[1735580738455,1.48334434,705.08,703.3,1.02681956]
[1735580739756,1.48334434,705.08,696.04,4.93763277]
[1735580739757,0.26118544,705.07,703.57,1.02681956]
[1735580740855,0.26118544,705.07,703.62,1.02681956]
[1735580741757,0.26118544,705.07,703.66,1.02681956]
[1735580742958,0.26118544,705.07,703.67,1.02681956]
[1735580744060,0.26118544,705.07,703.47,1.02681956]
[1735580744862,0.26118544,705.07,703.55,1.02681956]
[1735580745560,1.48334434,705.08,703.55,1.02681956]
[1735580747364,1.48334434,705.08,703.45,1.02681956]
[1735580748664,1.48334434,705.08,703.54,1.02681956]
[1735580749764,1.48334434,705.08,703.51,1.02681956]
[1735580750764,1.48334434,705.08,703.62,1.02681956]
[1735580751668,1.48334434,705.08,703.61,1.02681956]
[1735580752667,1.48334434,705.08,703.64,1.02681956]
[1735580753766,1.48334434,705.08,703.42,1.02681956]
[1735580754264,0.26120723,705.07,703.42,1.02681956]
[1735580754969,0.26120723,705.07,703.61,1.02681956]
[1735580757267,0.26120723,705.07,703.71,1.02681956]
[1735580757569,1.48334434,705.08,703.71,1.02681956]
[1735580758764,0.26119925,705.07,703.71,1.02681956]
[1735580759170,0.26119925,705.07,703.53,1.02681956]
[1735580760170,1.48334434,705.08,703.5,1.02681956]
[1735580760770,0.26124342,705.07,703.5,1.02681956]
[1735580761367,0.26124342,705.07,703.46,1.02681956]
[1735580761870,0.26132443,705.06,703.46,1.02681956]
[1735580762572,0.26132443,705.06,703.32,1.02681956]
[1735580763471,1.48334434,705.08,703.32,1.02681956]
[1735580763673,0.26130732,705.05,703.26,1.02681956]
[1735580763873,0.26130732,705.07,703.26,1.02681956]
[1735580764772,0.26130732,705.04,703.26,1.02681956]
[1735580765166,0.26133714,705.03,703.26,1.02681956]
[1735580765570,0.26133714,705.03,703.2,1.02681956]
[1735580765968,1.48334434,705.08,703.2,1.02681956]
[1735580766471,1.48334434,705.08,703.19,1.02681956]
[1735580766670,0.26140207,705.07,703.19,1.02681956]
[1735580767372,0.26134489,705.06,703.19,1.02681956]
[1735580767569,0.52274696,705.06,703.19,1.02681956]
[1735580767774,0.26134489,705.06,703.36,1.02681956]
[1735580768569,0.26134489,705.05,703.34,1.02681956]
[1735580768774,0.26134489,705.04,703.34,1.02681956]
[1735580769577,0.26134489,705.03,703.33,1.02681956]
[1735580769877,0.26129516,705.02,703.33,1.02681956]
[1735580770674,0.26129516,705.07,703.38,1.02681956]
[1735580771272,0.26129516,705.01,703.38,1.02681956]
[1735580771980,1.48281237,705.0,703.38,1.02681956]
[1735580772880,0.26133511,704.99,703.38,1.02681956]
[1735580773280,0.26133511,704.99,703.23,1.02681956]
[1735580774681,0.26133511,704.98,703.23,1.02681956]
[1735580774883,0.26133511,704.97,703.23,1.02681956]
[1735580775182,0.26133511,704.97,703.37,1.02681956]
[1735580775374,1.48281237,705.0,703.37,1.02681956]
[1735580775680,0.26132647,704.97,703.37,1.02681956]
[1735580776081,0.26132647,704.96,703.37,1.02681956]
[1735580776580,0.26132647,704.96,703.34,1.02681956]
[1735580776875,0.26132647,704.99,703.34,1.02681956]
[1735580777275,0.26132647,704.95,703.34,1.02681956]
[1735580777477,1.48281237,705.0,703.34,1.02681956]
[1735580777681,1.48281237,705.0,703.2,1.02681956]
[1735580778077,0.26132691,704.94,703.2,1.02681956]
[1735580778276,1.48281237,705.0,703.2,1.02681956]
[1735580778481,1.48281237,705.0,703.3,1.02681956]
[1735580778981,0.26128685,704.99,703.3,1.02681956]
[1735580779583,1.48281237,705.0,703.3,1.02681956]
[1735580779786,1.48281237,705.0,703.34,1.02681956]
[1735580780184,0.26127264,704.99,703.34,1.02681956]
[1735580781083,0.26127264,704.99,703.4,1.02681956]
[1735580781280,0.26127264,704.98,703.4,1.02681956]
[1735580781685,0.26127264,704.98,703.43,1.02681956]
[1735580782184,0.26127264,704.97,703.43,1.02681956]
[1735580782484,0.26127264,704.96,703.43,1.02681956]
[1735580782785,0.26134479,704.95,703.43,1.02681956]
[1735580783485,0.26134479,704.99,703.31,1.02681956]
[1735580784082,0.26134479,704.98,703.31,1.02681956]
[1735580784782,0.26134479,704.99,703.21,1.02681956]
[1735580785187,0.26134989,704.98,703.21,1.02681956]
[1735580785786,0.26134989,704.98,703.3,1.02681956]
[1735580786086,0.26134989,704.99,703.3,1.02681956]
[1735580786781,0.26134989,704.97,703.3,1.02681956]
[1735580787188,0.26134989,704.98,703.3,1.02681956]
[1735580787592,1.48281237,705.0,703.3,1.02681956]
[1735580787789,0.26134125,704.99,703.3,1.02681956]
[1735580788092,0.26134125,704.99,703.35,1.02681956]
[1735580788287,1.48281237,705.0,703.35,1.02681956]
[1735580788892,0.26136281,704.98,703.35,1.02681956]
[1735580789092,0.26136281,704.98,703.47,1.02681956]
[1735580789393,0.26136281,704.99,703.47,1.02681956]
[1735580790187,0.26136281,704.99,703.31,1.02681956]
[1735580790387,1.48281237,705.0,703.31,1.02681956]
[1735580790991,0.261403,704.98,703.31,1.02681956]
[1735580791492,0.261403,704.98,703.36,1.02681956]
[1735580792190,0.261403,704.99,703.36,1.02681956]
[1735580792587,0.261403,704.99,703.23,1.02681956]
[1735580792991,0.261403,704.97,703.23,1.02681956]
[1735580793387,0.26144306,704.98,703.23,1.02681956]
[1735580793591,0.26144306,704.97,703.23,1.02681956]